bitfinex-derivatives/quotes_ETHF0:USTF0_20250213
["timestamp","ask_amount","ask_price","bid_price","bid_amount"]
[1739418176545,1.1495,2744.7,2744.6,1.40228271]
[1739418177042,1.1495,2744.7,2744.6,2.13087271]
[1739418180841,1.87806,2744.7,2744.6,1.40228271]
[1739418181140,1.1495,2744.7,2744.4,1.40228271]
[1739418181346,0.72861,2744.6,2744.4,0.72864]
[1739418181646,0.5481,2744.5,2744.4,0.72864]
[1739418182242,0.5481,2744.5,2744.4,2.13092271]
[1739418185147,1.7605184,2744.7,2744.4,1.40228271]
[1739418185349,1.7605184,2744.7,2744.6,1.40228271]
[1739418185544,1.7605184,2744.7,2744.6,2.13087271]
[1739418185745,1.7605184,2744.7,2744.6,1.40228271]
[1739418185948,1.7605184,2744.7,2744.6,2.13087271]
[1739418186250,2.4890784,2744.7,2744.6,1.40228271]
[1739418186852,1.7605184,2744.7,2744.6,1.40228271]
[1739418187349,2.4890784,2744.7,2744.6,1.40228271]
[1739418187845,2.4890784,2744.7,2744.5,41.5286]
[1739418188352,1.7605184,2744.7,2744.5,40.8]
[1739418188659,2.4890984,2744.7,2744.4,0.72864]
[1739418189444,2.4890984,2744.7,2744.5,0.72861]
[1739418189644,1.7605184,2744.7,2744.3,43.93890224]
[1739418189943,1.7605184,2744.7,2744.3,3.13890224]
[1739418190251,0.72864,2744.5,2744.3,3.13890224]
[1739418190454,0.5584,2744.4,2744.3,3.86757224]
[1739418192654,1.1495,2744.7,2744.6,0.72859]
[1739418192845,1.7014,2744.7,2744.5,0.7286]
[1739418193154,2.42997,2744.7,2744.5,0.7286]
[1739418193349,2.42997,2744.7,2744.3,4.00540224]
[1739418193651,0.72859,2744.6,2744.4,0.72863]
[1739418194555,6.2028,2745.1,2744.5,0.5805]
[1739418194757,0.3648,2745.0,2744.7,3.13343328]
[1739418194956,0.3648,2745.0,2744.8,1.27523]
[1739418195153,0.3648,2745.0,2744.8,1.59043]
[1739418196457,0.3648,2745.0,2744.8,0.8619]
[1739418196750,0.3648,2745.0,2744.9,0.72851]
[1739418196955,0.3648,2745.0,2744.8,1.59042]
[1739418197355,0.3648,2745.0,2744.9,0.72851]
[1739418198352,0.3648,2745.0,2744.9,1.27591]
[1739418199260,0.3648,2745.0,2744.9,2.84791]
[1739418203760,0.3648,2745.3,2744.9,2.1194]
[1739418203963,0.3648,2745.3,2745.2,0.72843]
[1739418205157,0.3648,2745.3,2745.1,3.13343328]
[1739418205352,1.09321,2745.3,2745.1,3.86187328]
[1739418205560,0.3648,2745.3,2745.1,3.86187328]
[1739418205855,4.50389,2745.4,2744.9,1.572]
[1739418205856,0.3648,2745.2,2744.9,1.572]
[1739418206059,0.3648,2745.2,2745.0,0.72847]
[1739418206266,0.585,2745.1,2745.0,0.72847]
[1739418208061,0.585,2745.1,2745.0,0.72849]
[1739418208460,1.1412,2745.1,2745.0,0.72849]
[1739418209660,1.1412,2745.1,2745.0,1.40186193]
[1739418210063,1.1412,2745.1,2745.0,2.13035193]
[1739418211662,1.1412,2745.1,2745.0,1.40186193]
[1739418212163,1.1412,2745.1,2745.0,2.13035193]
[1739418216266,1.1412,2745.1,2744.8,1.40186193]
[1739418216564,0.5652,2745.0,2744.8,2.13039193]
[1739418217067,1.2937,2745.0,2744.8,1.40186193]
[1739418217653,1.2937,2745.0,2744.8,2.13040193]
[1739418218663,1.2937,2745.0,2744.8,1.40186193]
[1739418218963,0.72856,2744.7,2744.6,1.40186193]
[1739418219265,1.14469294,2745.0,2744.6,1.40186193]
[1739418219266,0.72854,2744.8,2744.6,1.40186193]
[1739418219460,0.5776,2744.7,2744.6,1.40186193]
[1739418220060,1.30616,2744.7,2744.6,1.40186193]
[1739418221558,0.5776,2744.7,2744.5,2.30061]
[1739418221773,1.1135,2744.6,2744.5,2.30061]
[1739418226869,3.5726,2745.2,2744.5,1.572]
[1739418227067,1.1714,2745.1,2744.9,3.13337529]
[1739418227570,0.72849,2745.0,2744.9,3.13337529]
[1739418227759,0.72855,2744.8,2744.6,3.13337529]
[1739418227966,0.5496,2744.7,2744.6,3.13337529]
[1739418228169,1.0827,2744.7,2744.6,3.13337529]
[1739418228363,1.81126,2744.7,2744.6,3.13337529]
[1739418228568,1.0827,2744.7,2744.6,3.13337529]
[1739418228762,1.0827,2744.7,2744.3,3.13884425]
[1739418229075,1.0827,2744.7,2744.3,3.86749425]
[1739418229076,0.5573,2744.6,2744.3,3.86749425]
[1739418229373,1.28591,2744.6,2744.3,3.86749425]
[1739418229766,0.72862,2744.5,2744.3,3.86749425]
[1739418230875,0.5573,2744.6,2744.4,0.72863]
[1739418231376,1.28589,2744.6,2744.4,0.72863]
[1739418234077,0.5573,2744.6,2744.3,3.13884425]
[1739418234276,0.72863,2744.5,2744.3,3.86749425]
[1739418234470,0.72863,2744.5,2744.3,3.13884425]
[1739418234775,0.5573,2744.6,2744.4,0.72864]
[1739418235076,1.28591,2744.6,2744.4,0.72864]
[1739418235266,0.5573,2744.6,2744.3,3.13884425]
[1739418235467,0.5573,2744.6,2744.5,0.72862]
[1739418237175,0.5573,2744.6,2744.4,0.72863]
[1739418237671,0.5573,2744.6,2744.5,0.72862]
[1739418240671,0.5573,2744.6,2744.4,0.5833]
[1739418240975,0.5573,2744.6,2744.4,1.31192]
[1739418241680,0.5573,2744.6,2744.5,1.40234615]
[1739418242377,0.5573,2744.6,2744.5,2.13096615]
[1739418243281,0.5573,2744.6,2744.5,1.40234615]
[1739418243479,0.5573,2744.6,2744.5,2.13096615]
[1739418243680,0.5573,2744.6,2744.5,1.40234615]
[1739418243983,0.5573,2744.6,2744.5,2.13096615]
[1739418244183,0.5573,2744.6,2744.5,1.40234615]
[1739418244481,0.5573,2744.6,2744.5,2.13096615]
[1739418249485,0.5573,2744.6,2744.5,1.40234615]
[1739418249677,1.28589,2744.6,2744.5,1.40234615]
[1739418250182,0.5573,2744.6,2744.5,1.40234615]
[1739418250682,1.28589,2744.6,2744.5,1.40234615]
[1739418250975,0.5573,2744.6,2744.5,1.40234615]
[1739418251175,0.5573,2744.6,2744.5,2.13096615]
[1739418251677,1.28589,2744.6,2744.5,1.40234615]
[1739418251880,0.72864,2744.4,2744.3,0.00546896]
[1739418252479,6.0,2744.4,2743.7,1.40234615]
[1739418252679,0.7288,2743.8,2743.7,1.40234615]
[1739418253177,1.8287,2743.8,2743.7,1.40234615]
[1739418253675,1.8287,2743.8,2743.4,45.20573668]
[1739418253676,0.72886,2743.6,2743.5,0.00546896]
[1739418253980,3.93666,2743.6,2743.5,0.00546896]
[1739418254378,0.72886,2743.6,2743.5,0.00546896]
[1739418254581,3.93666,2743.6,2743.5,0.00546896]
[1739418254977,3.2078,2743.6,2743.5,0.00546896]
[1739418255785,3.93666,2743.6,2743.5,0.00546896]
[1739418256483,3.2078,2743.6,2743.5,0.00546896]
[1739418257987,3.93666,2743.6,2743.5,0.00546896]
[1739418261791,3.2078,2743.6,2743.5,0.00546896]
[1739418263187,3.2078,2743.6,2743.5,0.73434896]
[1739418263392,0.72886,2743.6,2743.5,0.00546896]
[1739418264189,0.5481,2743.7,2743.5,0.00546896]
[1739418264386,1.27695,2743.7,2743.5,0.00546896]
[1739418264586,0.72886,2743.6,2743.5,0.00546896]
[1739418264787,1.27695,2743.7,2743.5,0.00546896]
[1739418265382,0.5481,2743.7,2743.5,0.00546896]
[1739418265586,3.93666,2743.6,2743.5,0.00546896]
[1739418265989,3.2078,2743.6,2743.5,0.00546896]
[1739418266590,3.93666,2743.6,2743.5,0.00546896]
[1739418266901,3.2078,2743.6,2743.5,0.00546896]
[1739418267902,3.2078,2743.6,2743.5,0.73434896]
[1739418268099,3.2078,2743.6,2743.5,1.32174896]
[1739418268303,3.2078,2743.6,2743.5,1.88864896]
[1739418270104,3.2078,2743.6,2743.5,0.00546896]
[1739418273907,3.2078,2743.6,2743.5,0.73434896]
[1739418274802,3.2078,2743.6,2743.5,0.00546896]
[1739418276708,0.5481,2743.7,2743.6,0.72886]
[1739418277899,0.5481,2743.7,2743.5,0.00546896]
[1739418278100,0.5481,2743.7,2743.6,0.72886]
[1739418283610,0.5481,2743.7,2743.6,2.13209865]
[1739418286014,0.5481,2743.7,2743.6,1.40323865]
[1739418286207,1.85863,2743.7,2743.6,1.40323865]
[1739418286514,1.1298,2743.7,2743.6,1.40323865]
[1739418286713,1.1298,2743.7,2743.6,2.13209865]
[1739418301226,0.00546896,2744.0,2743.6,1.40323865]
[1739418301520,0.00546896,2744.0,2743.9,2.13201865]
[1739418302120,0.00546896,2744.0,2743.5,1.40870761]
[1739418302316,0.72885,2743.7,2743.5,1.40870761]
[1739418302516,1.7308,2743.6,2743.5,1.40870761]
[1739418302918,1.7308,2743.6,2743.5,2.13758761]
[1739418305524,3.2078,2743.8,2743.5,1.40870761]
[1739418305727,3.2078,2743.8,2743.7,2.13206865]
[1739418306323,1.70086333,2743.9,2743.7,2.13206865]
[1739418306324,1.0806,2743.9,2743.7,1.40323865]
[1739418306516,0.62564999,2744.0,2743.9,0.72878]
[1739418306716,0.00546896,2744.0,2743.9,2.13201865]
[1739418308222,0.00546896,2744.0,2743.9,1.40323865]
[1739418308419,0.00546896,2744.0,2743.9,2.13201865]
[1739418310023,0.00546896,2744.0,2743.9,1.40323865]
[1739418310425,0.00546896,2744.0,2743.9,2.13201865]
[1739418319937,1.10126896,2744.0,2743.9,2.13201865]
[1739418320137,1.64266896,2744.0,2743.9,2.13201865]
[1739418321941,1.64266896,2744.0,2743.9,1.40323865]
[1739418322237,0.72881,2743.8,2743.7,1.40323865]
[1739418323234,3.9366,2743.9,2743.7,1.40323865]
[1739418323440,0.7288,2743.8,2743.7,1.40323865]
[1739418324940,4.61103865,2743.9,2743.5,0.00546896]
[1739418325243,3.93666,2743.6,2743.5,0.00546896]
[1739418325442,4.5458618,2743.6,2743.5,0.00546896]
[1739418325637,6.2599618,2743.6,2743.5,0.00546896]
[1739418326741,5.5311018,2743.6,2743.5,1.40870761]
[1739418326947,6.2599618,2743.6,2743.5,1.40870761]
[1739418327242,6.2599618,2743.6,2743.5,0.00546896]
[1739418327541,5.5311018,2743.6,2743.5,0.00546896]
[1739418328137,5.65076,2743.6,2743.5,0.00546896]
[1739418328336,5.65076,2743.6,2743.5,2.13758761]
[1739418328337,4.9219,2743.6,2743.5,2.13758761]
[1739418328534,4.9219,2743.6,2743.5,1.40870761]
[1739418328739,5.65076,2743.6,2743.5,1.40870761]
[1739418330744,5.65076,2743.6,2743.5,0.00546896]
[1739418331133,6.25948247,2743.6,2743.5,0.00546896]
[1739418333236,5.65076,2743.6,2743.5,0.00546896]
[1739418339444,5.65076,2743.6,2743.5,1.40870761]
[1739418342046,5.65076,2743.6,2743.5,2.13758761]
[1739418342250,5.65076,2743.6,2743.5,1.40870761]
[1739418343349,2.44296,2743.6,2743.5,1.40870761]
[1739418343653,5.65076,2743.6,2743.5,1.40870761]
[1739418344553,5.65076,2743.6,2743.5,0.00546896]
[1739418347055,5.65076,2743.6,2743.5,1.40870761]
[1739418347750,5.08346,2743.6,2743.5,1.40870761]
[1739418348456,5.08346,2743.6,2743.5,3.28098761]
[1739418348757,5.08346,2743.6,2743.5,2.55210761]
[1739418349053,0.72884,2743.7,2743.5,3.28097761]
[1739418349254,0.72884,2743.7,2743.6,1.40323865]
[1739418356657,0.72884,2743.7,2743.5,0.00546896]
[1739418356860,3.93666,2743.6,2743.5,0.00546896]
[1739418357059,6.11675158,2743.6,2743.5,0.00546896]
[1739418359661,6.11675158,2743.6,2743.5,0.00195469]
[1739418365660,6.11675158,2743.6,2743.5,0.00069864]
[1739418366061,0.72904,2742.9,2742.8,3.68759291]
[1739418366360,3.2078,2743.0,2742.6,1.1062]
[1739418366556,0.72907,2742.8,2742.7,0.5385]
[1739418367569,0.72907,2742.8,2742.7,1.2676]
[1739418368075,3.2078,2743.0,2742.7,0.5385]
[1739418368272,2.70650001,2743.0,2742.8,3.13699291]
[1739418368471,2.70650001,2743.0,2742.9,0.72904]
[1739418369671,3.43553001,2743.0,2742.8,3.86605291]
[1739418369864,2.70650001,2743.0,2742.8,3.13699291]
[1739418370069,0.72904,2742.9,2742.8,3.13699291]
[1739418370963,0.72912,2742.6,2742.5,0.00546896]
[1739418371157,3.93692,2742.6,2742.5,0.00546896]
[1739418376675,3.93692,2742.6,2742.5,0.00195404]
[1739418379670,3.2078,2742.6,2742.5,0.00195404]
[1739418380273,3.93692,2742.6,2742.5,0.00195404]
[1739418380468,3.2078,2742.6,2742.5,0.00195404]
[1739418380979,3.2078,2742.6,2742.5,0.73110404]
[1739418381372,3.2078,2742.6,2742.5,0.00195404]
[1739418381776,3.93692,2742.6,2742.5,0.00195404]
[1739418383472,3.2078,2742.6,2742.5,0.00195404]
[1739418383676,3.93692,2742.6,2742.5,0.00195404]
[1739418383978,3.2078,2742.6,2742.5,0.00195404]
[1739418384777,3.93692,2742.6,2742.5,0.00195404]
[1739418385872,3.2078,2742.6,2742.5,0.73110404]
[1739418386970,3.2078,2742.9,2742.5,0.00195404]
[1739418387172,3.2078,2743.3,2743.1,0.72896]
[1739418387375,3.2078,2743.3,2743.2,1.26746]
[1739418387564,3.2078,2743.6,2743.3,0.72892]
[1739418387765,0.7289,2743.5,2743.3,1.30482]
[1739418388077,3.2078,2743.6,2743.3,0.5759]
[1739418388278,0.72888,2743.5,2743.3,0.5759]
[1739418388680,0.72888,2743.5,2743.3,1.30483]
[1739418388877,3.2078,2743.6,2743.4,3.13699291]
[1739418389177,3.2078,2743.6,2743.5,0.72888]
[1739418389767,3.93658,2743.9,2743.5,0.72888]
[1739418389969,3.2078,2743.9,2743.6,0.5749]
[1739418390771,3.2078,2743.9,2743.6,1.30374]
[1739418391587,3.2078,2743.9,2743.6,0.5749]
[1739418391882,1.29051,2743.8,2743.6,0.5749]
[1739418392379,0.5617,2743.8,2743.6,0.5749]
[1739418392584,0.5617,2743.8,2743.6,1.30374]
[1739418393884,1.29052,2743.8,2743.6,0.5749]
[1739418394681,1.29052,2743.8,2743.4,3.69129291]
[1739418394886,1.29052,2743.8,2743.5,0.72887]
[1739418395779,0.5617,2743.8,2743.4,4.26679291]
[1739418396179,0.5617,2743.8,2743.7,0.72883]
[1739418397384,0.5617,2743.8,2743.6,0.72884]
[1739418397587,1.29051,2743.8,2743.6,0.72884]
[1739418397882,1.2905,2743.8,2743.6,0.72884]
[1739418399287,0.5617,2743.8,2743.4,4.26679291]
[1739418399489,0.72884,2743.7,2743.5,0.72887]
[1739418399682,1.26654,2743.7,2743.4,4.99569291]
[1739418399983,1.26654,2743.7,2743.4,4.44139291]
[1739418401780,0.5377,2743.7,2743.4,3.71249291]
[1739418401979,0.5377,2743.7,2743.6,0.72886]
[1739418402376,1.26654,2743.7,2743.5,0.72887]
[1739418403490,1.26655,2743.7,2743.5,0.72888]
[1739418404390,0.72888,2743.5,2743.4,3.13699291]
[1739418404993,3.2078,2743.6,2743.4,3.13699291]
[1739418405293,3.2078,2743.6,2743.5,0.72888]
[1739418405491,3.93666,2743.6,2743.5,0.72888]
[1739418405990,3.93666,2743.6,2743.4,3.86589291]
[1739418406388,3.93666,2743.6,2743.4,3.13699291]
[1739418406692,3.2078,2743.6,2743.5,0.72888]
[1739418409391,3.2078,2743.6,2743.4,3.86588291]
[1739418409583,3.2078,2743.6,2743.4,3.13699291]
[1739418409792,3.2078,2743.6,2743.5,0.72888]
[1739418411696,0.5377,2743.7,2743.6,0.72886]
[1739418412894,0.5377,2743.7,2743.6,41.52886]
[1739418413195,0.00546896,2744.0,2743.6,40.8]
[1739418413399,0.00546896,2744.0,2743.9,3.86577291]
[1739418416101,0.00546896,2744.0,2743.9,1.38223766]
[1739418417100,0.00546896,2744.0,2743.9,2.11101766]
[1739418417397,0.73421896,2744.0,2743.9,1.38223766]
[1739418417596,0.73421896,2744.0,2743.8,0.7288]
[1739418417791,0.5489,2743.9,2743.8,0.7288]
[1739418420291,0.5489,2743.9,2743.7,1.1232]
[1739418420494,0.5489,2743.9,2743.8,0.7288]
[1739418426596,0.00546896,2744.0,2743.9,0.72878]
[1739418426802,0.00546896,2744.0,2743.9,3.86577291]
[1739418427099,3.7638,2744.6,2744.5,0.72862]
[1739418428113,4.40038385,2744.6,2744.5,0.72862]
[1739418428707,5.12897385,2744.6,2744.4,3.86562291]
[1739418428908,4.49239,2744.6,2744.4,3.86562291]
[1739418429108,0.7051976,2744.5,2744.4,3.86562291]
[1739418429313,4.4689976,2744.6,2744.4,3.13699291]
[1739418429606,3.7638,2744.6,2744.5,0.72862]
[1739418429905,3.2078,2744.6,2744.5,0.72862]
[1739418430806,3.2078,2744.6,2744.4,3.13699291]
[1739418431010,3.2078,2744.6,2744.4,3.86561291]
[1739418431202,3.2078,2744.6,2744.5,0.72862]
[1739418432400,0.71045317,2744.8,2744.7,0.72856]
[1739418432603,0.00546896,2744.8,2744.7,3.86555291]
[1739418433007,0.00546896,2744.8,2744.7,41.52856]
[1739418433400,0.00546896,2744.8,2744.7,0.72856]
[1739418434206,0.37016896,2744.8,2744.7,0.72856]
[1739418434406,0.37016896,2744.8,2744.7,41.52856]
[1739418434601,0.37016896,2744.8,2744.7,0.72856]
[1739418439008,0.37016896,2744.8,2744.6,0.5383]
[1739418439009,0.37016896,2744.8,2744.6,0.46160848]
[1739418439214,0.37016896,2744.8,2744.7,4.40835291]
[1739418440018,0.37016896,2744.8,2744.7,1.27136]
[1739418450122,0.37016896,2744.8,2744.7,1.569]
[1739418450322,0.37016896,2744.8,2744.7,2.29756]
[1739418454725,0.91546896,2744.8,2744.7,2.29756]
[1739418455417,0.91546896,2744.8,2744.7,0.56804624]
[1739418457617,0.91546896,2744.8,2744.7,1.97015665]
[1739418463521,0.91546896,2744.8,2744.7,0.7509949]
[1739418463923,0.91546896,2744.8,2744.7,1.4795549]
[1739418467023,0.72859,2744.6,2744.3,2.13623937]
[1739418467222,1.40211041,2744.5,2744.3,0.00546896]
[1739418467419,1.28044,2744.4,2744.3,0.00546896]
[1739418467820,0.72868,2744.3,2744.1,1.40211041]
[1739418468029,0.5545,2744.3,2744.1,2.13082041]
[1739418468224,1.28317,2744.3,2744.1,42.20211041]
[1739418468415,0.5545,2744.3,2744.1,42.20211041]
[1739418468620,1.28317,2744.3,2744.1,42.20211041]
[1739418469123,0.5545,2744.3,2744.1,42.93082041]
[1739418469326,1.28317,2744.3,2744.1,42.93082041]
[1739418469530,0.5545,2744.3,2744.1,42.93082041]
[1739418469727,1.28317,2744.3,2744.1,41.52871]
[1739418469935,0.5545,2744.3,2744.1,41.52871]
[1739418470135,1.28318,2744.3,2744.1,0.72871]
[1739418470628,0.5545,2744.3,2744.1,0.7287]
[1739418471029,0.5545,2744.3,2744.2,0.7287]
[1739418476737,0.5545,2744.3,2744.2,41.5287]
[1739418477939,0.00546896,2744.8,2744.2,40.8]
[1739418478236,0.5796,2744.7,2744.5,0.7286]
[1739418478432,1.30817,2744.7,2744.5,0.7286]
[1739418478838,1.30817,2744.7,2744.4,3.13460236]
[1739418479035,0.5796,2744.7,2744.5,0.72862]
[1739418479232,1.30818,2744.7,2744.4,0.28442442]
[1739418479430,1.30818,2744.7,2744.2,41.3334]
[1739418479636,1.30818,2744.7,2744.4,0.72863]
[1739418479942,0.5796,2744.7,2744.4,0.72863]
[1739418480237,0.72861,2744.6,2744.3,0.72866]
[1739418480439,0.72863,2744.5,2744.3,0.72866]
[1739418480643,0.5542,2744.4,2744.3,0.72866]
[1739418484841,0.5542,2744.4,2744.2,41.3334]
[1739418485241,0.5542,2744.4,2744.2,0.72868]
[1739418485443,0.5542,2744.4,2744.1,3.13460236]
[1739418485742,0.5542,2744.4,2744.3,0.72867]
[1739418486633,0.5395,2744.6,2744.5,0.72862]
[1739418487746,0.5395,2744.6,2744.5,1.30042]
[1739418488541,1.1354,2744.7,2744.6,0.72859]
[1739418490549,1.75557113,2744.7,2744.6,0.72859]
[1739418490841,1.17597113,2744.7,2744.6,0.72859]
[1739418491048,1.17597113,2744.7,2744.4,3.13460236]
[1739418491346,1.17597113,2744.7,2744.6,0.72859]
[1739418496352,0.62017113,2744.7,2744.6,0.72859]
[1739418496650,3.57796896,2744.8,2744.7,0.72856]
[1739418496651,4.19814009,2744.8,2744.7,0.72856]
[1739418496842,4.19814009,2744.8,2744.7,3.86316236]
[1739418498655,3.57796896,2744.8,2744.7,3.86316236]
[1739418501758,3.57796896,2744.8,2744.7,2.13064101]
[1739418507268,0.37016896,2744.8,2744.7,2.13064101]
[1739418507466,0.00546896,2744.8,2744.7,2.13064101]
[1739418507873,0.00546896,2744.8,2744.7,3.69864101]
[1739418508372,0.00546896,2744.8,2744.7,6.90644101]
[1739418513276,0.00546896,2744.8,2744.7,3.69864101]
[1739418513475,0.54906896,2744.8,2744.7,3.69864101]
[1739418514071,0.54906896,2744.8,2744.5,1.40208101]
[1739418514273,2.13068101,2744.6,2744.2,0.72869]
[1739418514578,1.31694,2744.5,2744.1,2.13079101]
[1739418514770,2.66804101,2744.4,2744.1,1.40208101]
[1739418514975,0.72869,2744.3,2743.9,43.77554997]
[1739418515276,4.60988101,2744.2,2743.9,42.20754997]
[1739418515469,4.60988101,2744.2,2743.9,42.93631997]
[1739418515777,3.2078,2744.2,2743.9,41.53423896]
[1739418515974,3.2078,2744.2,2743.9,40.80546896]
[1739418516166,3.2078,2744.2,2743.9,0.00546896]
[1739418516676,3.9365,2744.2,2743.9,0.00546896]
[1739418516877,3.2078,2744.2,2743.9,0.73424896]
[1739418517068,3.9365,2744.2,2743.9,0.73424896]
[1739418517569,3.2078,2744.2,2743.9,0.73424896]
[1739418518866,3.2078,2744.2,2744.0,0.72875]
[1739418519264,3.2078,2744.2,2743.9,0.00546896]
[1739418519677,0.72873,2744.1,2743.9,0.00546896]
[1739418519878,0.5738,2744.0,2743.9,0.00546896]
[1739418520978,0.5738,2744.0,2743.9,0.73424896]
[1739418521475,0.5738,2744.0,2743.9,0.00546896]
[1739418522279,0.5738,2744.0,2743.9,0.73424896]
[1739418522774,0.5738,2744.0,2743.9,0.00546896]
[1739418522976,1.30255,2744.0,2743.9,0.00546896]
[1739418525078,1.30255,2744.0,2743.9,0.73424896]
[1739418525380,0.5738,2744.0,2743.9,0.73424896]
[1739418525773,1.30255,2744.0,2743.9,0.00546896]
[1739418525975,0.5738,2744.0,2743.9,0.73424896]
[1739418526274,1.30255,2744.0,2743.9,0.73424896]
[1739418526879,0.5738,2744.0,2743.9,0.73424896]
[1739418528075,0.5738,2744.0,2743.9,0.00546896]
[1739418528380,1.30255,2744.0,2743.9,0.00546896]
[1739418528581,1.1157,2744.0,2743.9,0.73424896]
[1739418529071,1.1157,2744.0,2743.9,0.00546896]
[1739418529277,1.84445,2744.0,2743.9,0.00546896]
[1739418531191,0.7289,2743.5,2743.4,0.7289]
[1739418531684,3.2078,2743.8,2743.2,44.0078]
[1739418531979,2.1534,2743.9,2743.0,3.13508319]
[1739418531980,1.0989,2743.4,2743.0,0.729]
[1739418532181,0.72899,2743.1,2743.0,0.729]
[1739418532385,0.72899,2743.1,2742.9,0.76273015]
[1739418532887,0.72899,2743.1,2742.9,0.73448896]
[1739418533281,0.72902,2743.0,2742.9,0.73450896]
[1739418533482,3.2078,2743.2,2742.9,0.73449896]
[1739418533483,0.729,2743.1,2742.9,0.73449896]
[1739418533682,3.93677,2743.2,2743.0,0.729]
[1739418534387,0.5897,2743.1,2743.0,0.729]
[1739418534588,0.00546896,2743.3,2743.0,3.13508319]
[1739418534784,1.1631,2743.8,2743.6,0.72884]
[1739418535083,1.1631,2743.8,2743.3,3.13508319]
[1739418535385,1.7498,2743.8,2743.3,3.13508319]
[1739418535580,2.47862,2743.8,2743.3,3.13508319]
[1739418535784,1.75526896,2743.8,2743.4,0.72889]
[1739418535985,0.72886,2743.6,2743.4,0.72889]
[1739418536287,0.72884,2743.7,2743.4,0.72889]
[1739418536674,1.75526896,2743.8,2743.6,0.72884]
[1739418536884,1.75526896,2743.8,2743.3,3.13508319]
[1739418537082,1.75526896,2743.8,2743.7,0.72883]
[1739418537382,0.72886,2743.7,2743.4,0.7289]
[1739418537587,0.72885,2743.7,2743.4,0.7289]
[1739418537785,0.72885,2743.7,2743.5,0.72888]
[1739418537990,0.72884,2743.7,2743.4,0.7289]
[1739418538491,1.75526896,2743.8,2743.3,3.13508319]
[1739418538879,1.17256896,2743.8,2743.7,0.72883]
[1739418539176,0.58586896,2743.8,2743.7,0.72883]
[1739418539380,0.00546896,2743.8,2743.7,3.86391319]
[1739418542885,0.00546896,2743.8,2743.6,1.1082]
[1739418542886,0.00546896,2743.8,2743.6,0.5447]
[1739418543182,0.59006896,2743.8,2743.5,0.72887]
[1739418543377,1.31887896,2743.8,2743.5,0.72887]
[1739418543582,1.31887896,2743.8,2743.4,4.70308319]
[1739418543886,1.31887896,2743.8,2743.4,5.43197319]
[1739418544081,1.31887896,2743.8,2743.5,0.72887]
[1739418544791,1.31887896,2743.8,2743.4,5.43197319]
[1739418544990,0.72884,2743.7,2743.4,5.43197319]
[1739418545195,0.549,2743.6,2743.5,0.72888]
[1739418551883,0.59006896,2743.8,2743.7,0.72883]
[1739418553389,0.00546896,2743.8,2743.7,0.72883]
[1739418553595,0.00546896,2743.8,2743.7,3.86391319]
[1739418553990,0.00546896,2743.8,2743.7,7.07171319]
[1739418554396,0.00546896,2743.8,2743.7,7.65511319]
[1739418556297,0.00546896,2743.8,2743.7,48.45511319]
[1739418560798,1.1232,2744.3,2744.2,0.7287]
[1739418561495,1.19761239,2744.4,2744.3,0.72867]
[1739418561496,0.63611239,2744.4,2744.3,0.72867]
[1739418561698,4.3573,2744.5,2744.3,0.72867]
[1739418561901,1.22341239,2744.4,2744.3,0.72867]
[1739418562399,1.22341239,2744.4,2744.1,3.13508319]
[1739418562592,1.95206239,2744.4,2744.1,3.86379319]
[1739418562899,1.22341239,2744.4,2744.2,0.72869]
[1739418563592,1.22341239,2744.4,2744.1,3.13508319]
[1739418563798,1.22341239,2744.4,2744.3,0.72867]
[1739418564698,1.22341239,2744.4,2743.9,1.568]
[1739418564901,0.72871,2744.2,2743.7,4.7758]
[1739418565197,0.5692,2744.1,2743.9,0.72876]
[1739418565499,0.5482,2744.0,2743.9,0.72876]
[1739418565692,1.0887,2744.0,2743.9,0.72876]
[1739418569199,0.5692,2744.1,2743.8,3.71068319]
[1739418569401,1.1187,2744.0,2743.9,0.72878]
[1739418570299,1.1187,2744.0,2743.8,4.43947319]
[1739418570704,1.1187,2744.0,2743.9,0.72878]
[1739418573205,1.1187,2744.0,2743.8,3.71068319]
[1739418573604,1.1187,2744.0,2743.9,0.72878]
[1739418574906,1.1187,2744.0,2743.8,4.43946319]
[1739418575103,1.1187,2744.0,2743.9,0.72878]
[1739418575503,1.84746,2744.0,2743.8,3.86387319]
[1739418575703,1.1187,2744.0,2743.8,3.86387319]
[1739418576102,1.84745,2744.0,2743.8,3.86387319]
[1739418576298,1.1187,2744.0,2743.8,2.68207766]
[1739418576505,1.1187,2744.0,2743.9,0.72878]
[1739418576905,1.84745,2744.0,2743.8,3.41085766]
[1739418577401,1.1187,2744.0,2743.5,3.13508319]
[1739418577607,0.72879,2743.9,2743.7,0.72882]
[1739418577799,1.1187,2744.0,2743.4,3.2078]
[1739418577998,1.1187,2744.0,2743.9,0.72878]
[1739418580605,1.1187,2744.0,2743.5,3.13508319]
[1739418580803,1.84745,2744.0,2743.8,0.72879]
[1739418581204,1.1187,2744.0,2743.9,0.72878]
[1739418581611,1.1187,2744.0,2743.5,3.13508319]
[1739418582109,1.1187,2744.0,2743.7,0.72881]
[1739418582310,1.84747,2744.0,2743.5,3.13508319]
[1739418582608,1.1187,2744.0,2743.9,0.72878]
[1739418583409,1.1187,2744.0,2743.5,3.13508319]
[1739418583708,0.72879,2743.9,2743.7,0.72882]
[1739418583907,1.1187,2744.0,2743.5,3.13508319]
[1739418584112,1.84748,2744.0,2743.8,0.7288]
[1739418584913,1.1187,2744.0,2743.9,0.72878]
[1739418585112,1.1187,2744.0,2743.5,3.13508319]
[1739418585715,1.84745,2744.0,2743.5,3.13508319]
[1739418585907,1.84745,2744.0,2743.8,0.72878]
[1739418586107,1.84745,2744.0,2743.9,0.72878]
[1739418587406,1.1187,2744.0,2743.9,0.72878]
[1739418589436,1.20557103,2744.1,2743.9,0.72878]
[1739418589437,1.20557103,2744.1,2744.0,0.72875]
[1739418589637,0.5692,2744.1,2744.0,0.72875]
[1739418590540,0.5692,2744.1,2743.8,1.1299]
[1739418590841,0.5692,2744.1,2744.0,1.40330546]
[1739418591038,0.5692,2744.1,2744.0,2.13205546]
[1739418593743,0.5692,2744.1,2744.0,1.40330546]
[1739418594143,1.20557103,2744.1,2744.0,1.40330546]